Cogmind - Beta 13 @@@ ROGUE MODE // 2024.04.02 @ 21:43:57 Player: CogEmotions! Result: Destroyed by C-17 Slicer with Blade Saw Performance ------------- Evolutions (2) 1000 Regions Visited (5) 1000 Robots Destroyed (25) 125 Value Destroyed (437) 437 Prototype IDs (0) 0 Alien Tech Used (0) 0 Bonus (200) 200 TOTAL SCORE: 2762 Bonus ------- Entered Garrisons 200 Cogmind --------- Core Integrity 0/550 Matter 300/300 Energy 100/100 System Corruption 2% Temperature Cool (0) Movement Core (50) Location -8/Garrison Parts ------- > --- POWER (1) -------- (None) > --- PROPULSION (4) --- (None) > --- UTILITY (4) ------ Targeting Computer > --- WEAPON (2) ------- (None) > --- INVENTORY (5) ---- Terrain Scan Processor Mining Laser Peak State ------------ > --- POWER ------------ Light Ion Engine > --- PROPULSION ------- Flight Unit Flight Unit > --- UTILITY ---------- Compact Battery Weight Redist. System Targeting Computer ECM Suite > --- WEAPON ----------- Mining Laser Maul > --- INVENTORY -------- Terrain Scan Processor Light Armor Plating Mining Laser [Rating: 13] Favorites ----------- Power Light Ion Engine Engine Light Ion Engine Propulsion Light Treads Treads Light Treads Hover Unit Airjet Flight Unit Flight Unit Utility Targeting Computer Device ECM Suite Storage Large Storage Unit Processor Targeting Computer Protection Light Armor Plating Weapon Small Laser Energy Gun Small Laser Special Weapon Mining Laser Impact Weapon Maul Build | -11 -10 -9 -9 -8 -8 ------- Run | Yrd Mat Mat Min Mat Gar Slots Evolved 4 | . . 2 . 2 . Power . | . . . . . . Propulsion 2 | . . . . 2 . Utility 2 | . . 2 . . . Weapon . | . . . . . . Parts Attached 29 | 4 6 12 . 7 . Power 3 | 1 . 2 . . . Engine 3 | 1 . 2 . . . Core . | . . . . . . Reactor . | . . . . . . Propulsion 6 | 2 . 2 . 2 . Treads 3 | 2 . . . 1 . Leg . | . . . . . . Wheel . | . . . . . . Hover 1 | . . . . 1 . Flight 2 | . . 2 . . . Utility 8 | 1 2 2 . 3 . Device 2 | . . 2 . . . Storage 3 | 1 1 . . 1 . Processor 1 | . 1 . . . . Hackware . | . . . . . . Protection 2 | . . . . 2 . Artifact . | . . . . . . Weapon 12 | . 4 6 . 2 . Energy Gun 7 | . 4 3 . . . Energy Cannon . | . . . . . . Ballistic Gun . | . . . . . . Ballistic Cannon . | . . . . . . Launcher . | . . . . . . Special Weapon 2 | . . 2 . . . Impact Weapon 3 | . . 1 . 2 . Slashing Weapon . | . . . . . . Piercing Weapon . | . . . . . . Special Melee Weapon . | . . . . . . Unidentified Prototypes . | . . . . . . Parts Lost 13 | . . 4 . 9 . Power 2 | . . 1 . 1 . Propulsion 4 | . . 1 . 3 . Utility 3 | . . . . 3 . Weapon 4 | . . 2 . 2 . Highest Loss Streak 4 | . . 2 . 4 . To Critical Strikes . | . . . . . . Average Slot Usage (%) 79 | . 94 89 88 55 29 Engine 8 | . 14 9 11 3 . Treads 14 | . 28 17 . 3 . Flight 2 | . . 2 22 . . Device 14 | . . 19 22 16 6 Storage 8 | . 14 9 . 4 . Processor 10 | . 10 11 11 9 9 Protection 1 | . . . . 3 . Energy Gun 13 | . 26 18 . . . Special Weapon 2 | . . . 22 4 . Impact Weapon 2 | . . . . 8 6 Naked Turns . | . . . . . . Heaviest Build 31 | 8 25 31 7 13 3 Greatest Support 46 | 40 40 46 8 20 8 Greatest Overweight (x) 4 | . . 1 . 4 . Average Overweight (x) . | . . . . . . Largest Inventory Capacity 15 | 8 15 15 5 5 5 Average Capacity 9 | 6 10 13 5 5 5 Most Carried 10 | 5 9 10 3 4 2 Average Carried 5 | 2 5 7 3 2 2 Final Capacity 15 | 8 15 5 5 5 5 Final Carried 9 | 3 9 3 3 2 2 Class Distribution -------------------- 100% | Mutant Dominant Class ---------------- Mutant | -10/Materials Mutant | -9/Materials Mutant | -9/Mines Mutant | -8/Materials Mutant | -8/Garrison Resources | -11 -10 -9 -9 -8 -8 ----------- Run | Yrd Mat Mat Min Mat Gar Matter Collected 633 | 217 153 188 . 75 . Remotely . | . . . . . . Salvage Created 758 | . 334 277 . 147 . Parts 40 | . 22 17 . 1 . Haulers Intercepted 1 | . . 1 . . . Recyclers Shooed 1 | . 1 . . . . Parts Field Recycled . | . . . . . . Retrieved Matter . | . . . . . . Parts Self-Destructed . | . . . . . . Prevented . | . . . . . . Kills | -11 -10 -9 -9 -8 -8 ------- Run | Yrd Mat Mat Min Mat Gar Combat Hostiles Destroyed 18 | . 5 6 . 7 . Melee 3 | . . . . 3 . Guns 11 | . 5 6 . . . Cannons 1 | . . . . 1 . Classes Destroyed 8 | . 4 2 . 2 . Worker 3 | . 3 . . . . Builder 1 | . 1 . . . . Tunneler 1 | . . . . 1 . Hauler 1 | . . 1 . . . Mechanic 1 | . . 1 . . . Swarmer 10 | . 3 3 . 4 . Grunt 6 | . 2 3 . 1 . Sentry 2 | . . . . 2 . Best Kill Streak 4 | . 3 4 . 3 . Combat Bots Only 3 | . 3 3 . 3 . Max Kills in Single Turn 2 | . 2 2 . 1 . Gunslinging 1 | . 1 1 . . . Exploded . | . . . . . . Melee 1 | . . . . 1 . Uniques/NPCs Destroyed . | . . . . . . Combat | -11 -10 -9 -9 -8 -8 -------- Run | Yrd Mat Mat Min Mat Gar Hostile Shots Fired 220 | . 35 61 . 112 12 Missed 63 | . 11 24 . 22 6 Damage Taken 1798 | . 270 480 . 936 112 Core 736 | . 64 109 . 451 112 Absorbed by Shields . | . . . . . . Regen/Repaired (Parts) 34 | . . 34 . . . Core Remaining (%) 82 | 100 74 . 72 . . Volleys Fired 54 | . 30 17 4 3 . Largest 2 | . 2 2 2 1 . Hottest 200 | . 80 105 200 100 . Shots Fired 105 | . 60 34 8 3 . Gun 94 | . 60 34 . . . Cannon . | . . . . . . Launcher . | . . . . . . Special 11 | . . . 8 3 . Kinetic . | . . . . . . Thermal 88 | . 60 17 8 3 . Explosive . | . . . . . . Electromagnetic 17 | . . 17 . . . Robot Hit Streak 10 | . 10 5 . 2 . Robot Miss Streak 3 | . 3 3 2 1 . Penetration Max . | . . . . . . Secondary Targets 4 | . 2 2 . . . Max Gunslinging Chain 1 | . 1 1 . . . Shots Hit Robots 74 | . 33 21 . 20 . Core Hits 31 | . 19 11 . 1 . Critical Kills . | . . . . . . Critical Parts Destroyed 5 | . . . . 5 . Critical Strikes 7 | . . 2 . 5 . Burn 2 | . . 2 . . . Smash 5 | . . . . 5 . Melee Attacks 24 | . . 2 . 22 . Impact 24 | . . 2 . 22 . Slashing . | . . . . . . Piercing . | . . . . . . Sneak Attacks 2 | . . . . 2 . Combat Hostiles . | . . . . . . Follow-up Attacks . | . . . . . . Damage Inflicted 1478 | . 392 332 . 754 . Guns 688 | . 386 302 . . . Cannons . | . . . . . . Explosions . | . . . . . . Melee 706 | . . . . 706 . Ramming 36 | . 6 30 . . . Kinetic . | . . . . . . Thermal 594 | . 386 160 . 48 . Explosive . | . . . . . . Electromagnetic 142 | . . 142 . . . Impact 706 | . . . . 706 . Slashing . | . . . . . . Piercing . | . . . . . . Highest Corruption 2 | . 2 . . 2 2 Average Corruption 2 | . 2 . . 2 2 Corruption Purged . | . . . . . . Corruption Blocked . | . . . . . . Effects 7 | . 4 . . 3 . Message Errors 2 | . 1 . . 1 . Heat Flow Errors 1 | . . . . 1 . Energy Discharges 1 | . 1 . . . . Parts Rejected 1 | . . . . 1 . Data Loss (minor) 1 | . 1 . . . . Alerts 1 | . 1 . . . . Overload Shots . | . . . . . . Overflow Damage 344 | . . . . 344 . Projectiles . | . . . . . . Explosions . | . . . . . . Melee 344 | . . . . 344 . Knockbacks 1 | . . . . 1 . Impact 1 | . . . . 1 . Kinetic . | . . . . . . Secondary . | . . . . . . Self-Inflicted Damage . | . . . . . . Shots . | . . . . . . Rammed 7 | . 1 6 . . . Targets Rammed 7 | . 1 6 . . . Kicked . | . . . . . . Crushed . | . . . . . . Highest Temperature 319 | . 319 228 132 245 . Average Temperature 91 | . 104 78 76 82 . Received Heat Transfer 549 | . 123 138 . 279 9 Effects 2 | . 2 . . . . Interference 2 | . 2 . . . . Siege Activations . | . . . . . . Robots Corrupted . | . . . . . . Combat Hostiles . | . . . . . . Parts Fried 7 | . . . . 7 . Impact Corruptions 14 | . . . . 14 . Robots Melted . | . . . . . . Combat Hostiles . | . . . . . . Parts Melted 2 | . 1 1 . . . Heat Transferred 1530 | . 875 555 . 100 . Parts Sabotaged . | . . . . . . Parts Stolen . | . . . . . . Parts Stripped . | . . . . . . Power Chain Reactions . | . . . . . . Alert | -11 -10 -9 -9 -8 -8 ------- Run | Yrd Mat Mat Min Mat Gar Peak Influence 199 | . 185 187 74 199 35 Initial 72 | . . . 72 28 35 Average 59 | . 72 41 73 82 35 Maximum Alert Level . | . . . . . . Low Security (%) 100 | 100 100 100 100 100 100 Level 1 . | . . . . . . Level 2 . | . . . . . . Level 3 . | . . . . . . Level 4 . | . . . . . . Level 5 . | . . . . . . High Security . | . . . . . . Max Security . | . . . . . . Squads Dispatched 4 | . 1 3 . . . Investigation 1 | . . 1 . . . Extermination . | . . . . . . Reinforcement 3 | . 1 2 . . . Assault . | . . . . . . Garrison . | . . . . . . Intercept . | . . . . . . Searches Triggered . | . . . . . . Construction Impeded 1 | . . 1 . . . Haulers Reinforced . | . . . . . . Active Scanning Responses . | . . . . . . Cargo Convoy Interrupts . | . . . . . . Stealth | -11 -10 -9 -9 -8 -8 --------- Run | Yrd Mat Mat Min Mat Gar Distress Signals 4 | . 2 . . 2 . Communications Jammed . | . . . . . . Distress Signals . | . . . . . . Times Spotted 58 | . 9 21 4 19 5 Peak Tracking Total 5 | . 4 5 4 5 5 Tactical Retreats 4 | . 1 1 . 2 . Traps | -11 -10 -9 -9 -8 -8 ------- Run | Yrd Mat Mat Min Mat Gar Traps Triggered 2 | . 1 . . 1 . Indirectly . | . . . . . . Trap Hack Attempts . | . . . . . . Triggered . | . . . . . . Disarmed . | . . . . . . Reprogrammed . | . . . . . . Reused . | . . . . . . Traps Extracted . | . . . . . . Installed . | . . . . . . Triggered . | . . . . . . Machines | -11 -10 -9 -9 -8 -8 ---------- Run | Yrd Mat Mat Min Mat Gar Machines Disabled . | . . . . . . Max in Single Turn . | . . . . . . Machines Repaired . | . . . . . . Machines Dismantled . | . . . . . . Machines Sabotaged . | . . . . . . Overloaded Fab Kills . | . . . . . . Hacking | -11 -10 -9 -9 -8 -8 --------- Run | Yrd Mat Mat Min Mat Gar Machines Accessed 3 | . 1 1 . 1 . Terminals 1 | . 1 . . . . Fabricators . | . . . . . . Repair Stations 1 | . . 1 . . . Recycling Units . | . . . . . . Scanalyzers . | . . . . . . Garrison Access 1 | . . . . 1 . Total Hacks 5 | . 1 3 . 1 . Successful 5 | . 1 3 . 1 . Failed . | . . . . . . Catastrophic . | . . . . . . Database Lockouts . | . . . . . . Manual . | . . . . . . Terminals 1 | . 1 . . . . Fabricators . | . . . . . . Repair Stations 3 | . . 3 . . . Recycling Units . | . . . . . . Scanalyzers . | . . . . . . Garrison Access 1 | . . . . 1 . Terminal Hacks 1 | . 1 . . . . Maintenance Status 1 | . 1 . . . . Fabricator Hacks . | . . . . . . Repair Station Hacks 3 | . . 3 . . . Scan Component 2 | . . 2 . . . Repair 1 | . . 1 . . . Recycling Unit Hacks . | . . . . . . Scanalyzer . | . . . . . . Garrison Access Hacks 1 | . . . . 1 . Unlock Access 1 | . . . . 1 . Unauthorized Hacks . | . . . . . . Terminals . | . . . . . . Fabricators . | . . . . . . Repair Stations . | . . . . . . Recycling Units . | . . . . . . Scanalyzers . | . . . . . . Garrison Access . | . . . . . . Data Cores Recovered . | . . . . . . Used . | . . . . . . Hacking Detections 1 | . . 1 . . . Full Trace Events 1 | . . 1 . . . Feedback Events . | . . . . . . Feedback Blocked . | . . . . . . Robot Schematics Acquired . | . . . . . . Robots Built . | . . . . . . Authchips . | . . . . . . Time . | . . . . . . Total Robot Build Rating . | . . . . . . Part Schematics Acquired . | . . . . . . Parts Built . | . . . . . . Authchips . | . . . . . . Time . | . . . . . . Total Part Build Rating . | . . . . . . Parts Repaired 1 | . . 1 . . . Time 26 | . . 26 . . . Parts Recycled . | . . . . . . Recycled Matter . | . . . . . . Retrieved Matter . | . . . . . . Retrieved Components . | . . . . . . Parts Scanalyzed . | . . . . . . Part Schematics Acquired . | . . . . . . Parts Damaged . | . . . . . . Bothacking | -11 -10 -9 -9 -8 -8 ------------ Run | Yrd Mat Mat Min Mat Gar Used RIF Installer . | . . . . . . Robots Hacked . | . . . . . . Non-combat . | . . . . . . Combat . | . . . . . . Robot Hacks Applied . | . . . . . . Relay Couplers Released . | . . . . . . Fabnet Peak Effective % . | . . . . . . Robots Rewired . | . . . . . . Allies Hacked . | . . . . . . Hacks Repelled . | . . . . . . Allies | -11 -10 -9 -9 -8 -8 -------- Run | Yrd Mat Mat Min Mat Gar Total Allies . | . . . . . . Largest Group . | . . . . . . Highest-Rated Group . | . . . . . . Highest-Rated Ally . | . . . . . . Total Orders . | . . . . . . Ally Attacks . | . . . . . . Total Damage . | . . . . . . Kills . | . . . . . . Allies Corrupted . | . . . . . . Allies Melted . | . . . . . . Intel | -11 -10 -9 -9 -8 -8 ------- Run | Yrd Mat Mat Min Mat Gar Robot Analysis Total . | . . . . . . Derelict Logs Recovered 1 | . . . 1 . . Drone Launches . | . . . . . . Drone Recoveries . | . . . . . . Exploration | -11 -10 -9 -9 -8 -8 ------------- Run | Yrd Mat Mat Min Mat Gar Turns Passed 2017 | 89 433 770 115 569 41 Spaces Moved 1396 | 53 201 488 235 349 70 Core 163 | 5 . . . 139 19 Treads 706 | 48 201 324 . 133 . Legs . | . . . . . . Wheels . | . . . . . . Hover 95 | . . . . 44 51 Flight 432 | . . 164 235 33 . Fastest Speed 37 | 50 160 37 37 37 50 Average Speed 115 | 149 160 124 37 136 57 Slowest Speed 250 | 160 160 240 37 250 60 Overloaded Moves . | . . . . . . Propulsion Burnouts . | . . . . . . Robots Hopped 3 | . . 2 1 . . Cave-ins Triggered . | . . . . . . Exploration Rate (%) 27 | 5 49 24 47 29 11 Regions Visited 5 Branch Regions 1 Pre-discovered Areas . | . . . . . . Known Exits Taken 1 | . . . . 1 . Unknown Exits Taken 4 | 1 1 1 1 . . Scrap Searched . | . . . . . . Spaces Dug . | . . . . . . Terrain Destroyed 3 | . . . 2 1 . Melee . | . . . . . . Projectile 3 | . . . 2 1 . AOE . | . . . . . . Terrain Rammed . | . . . . . . Walls Destroyed . | . . . . . . Machines Disabled . | . . . . . . Actions | -11 -10 -9 -9 -8 -8 --------- Run | Yrd Mat Mat Min Mat Gar Total 1621 | 63 250 611 237 390 70 Wait 81 | . 4 73 . 4 . Move 1386 | 52 200 483 232 349 70 Hop 3 | . . 2 1 . . Pick Up 29 | 7 9 8 . 5 . Fast Attach . | . . . . . . Attach 23 | 4 3 10 . 6 . Detach . | . . . . . . Swap 6 | . 3 2 . 1 . Drop 8 | . . 8 . . . Fire 54 | . 30 17 4 3 . Melee 24 | . . 2 . 22 . Ram . | . . . . . . Kick . | . . . . . . Crush 7 | . 1 6 . . . Escape Stasis . | . . . . . . Rewire . | . . . . . . Trap . | . . . . . . Miscellaneous . | . . . . . . Route ------- -11/Scrapyard -10/Materials (discovered 2 exits: *Mat / [*Min]) -9/Materials -9/Mines (discovered 2 exits: *Mat x2) -8/Materials (discovered 2 exits: Fac / Gar) -8/Garrison History --------- Turn | Location | Event 2 | -11/Scrapyard | Met Revision 17 44 | -11/Scrapyard | Discovered new exit (range 15) 90 | -11/Scrapyard | Entered Materials 290 | -10/Materials | Discovered new exit (range 7) 306 | -10/Materials | Build established: Mutant 499 | -10/Materials | Discovered new exit (range 16) 523 | -10/Materials | Entered another Materials area 523 | -9/Materials | Evolved 2 slots: Utility x2 664 | -9/Materials | Discovered new exit (range 6) 1262 | -9/Materials | Repaired Lgt. Ion Engine 1293 | -9/Materials | Entered Mines 1306 | -9/Mines | Discovered new exit (range 8) 1312 | -9/Mines | Learned 4 Materials zone layouts 1335 | -9/Mines | Excavation squad dispatched 1335 | -9/Mines | A large section of the Mines collapsed 1390 | -9/Mines | Discovered new exit (range 11) 1408 | -9/Mines | Entered Materials 1408 | -8/Materials | Evolved 2 slots: Propulsion x2 1409 | -8/Materials | Identified exit to Factory 1710 | -8/Materials | Core integrity fell below 50% 1743 | -8/Materials | Lost 4 parts (1p1n1u1w) 1859 | -8/Materials | Core integrity fell below 20% 1907 | -8/Materials | Lost 3 parts (2u1w) 1977 | -8/Materials | Identified exit to Garrison 1977 | -8/Materials | Entered Garrison 1982 | -8/Garrison | Triggered checkpoint 2002 | -8/Garrison | Triggered checkpoint 2018 | -8/Garrison | Destroyed by C-17 Slicer with Blade Saw Last Messages --------------- Acquired Reactive Plating. K-01 Serf collects debris. Acquired Airjet. System corrupted: Heat flow error (+269). Acquired 21 matter. K-01 Serf cleans the Terminal. System corrupted: Reactive Plating rejected. K-01 Serf cleans the Terminal. Connecting with Garrison Access... Current location identified: Materials >>Unlock Access door unlocked. EXIT=UNLOCKED: GARRISON LOCATION=GARRISON GOAL=ESCAPE Hvy. Hammer severed. Airjet severed. Weight Redist. System severed. C-17 Slicer knocked back. C-17 Slicer destroyed. Map ----- +----------------------------------------------------+ | ?????????????????????????????????????????????????? | | ?????????????????????????????????????????????????? | | ???????????????????????????###???????????????????? | | ??????????????????????????? ???????????????????? | | ??????????????????????????? ???????????????????? | | ??????????????????????????? #???????????????????? | | ??????????????????????????# #???????????????????? | | ??????????????????????????# #???????????????????? | | ??????????????????????????# #???????????????????? | | ??????????????????????????# #???????????????????? | | ??????????????????????????# #???????????????????? | | ??????????????????????????# #???????????????????? | | ????????????????????????### #???????????????????? | | ????????????????????????# #???????????????????? | | ????????????????????????# #???????????????????? | | ????????????????????????# #???????????????????? | | ????????????????????????### #???????????????????? | | ??????????????????????????# #???????????????????? | | ??????????????????????????# #???????????????????? | | ??????????????????????????# #???????????????????? | | ??????????????????????????# #???????????????????? | | ??????????????????????????# #???????????????????? | | ??????????????????????????# #???????????????????? | | ??????????????????????????# #???????????????????? | | ?????# ################### #???????????????????? | | ?????# % c c@ #???????????????????? | | ?????# / #???????????????????? | | ?????# ######################???????????????????? | | ?????#/ ##???????????????????????????????????????? | | ?????# T#???????????????????????????????????????? | | ?????# ##???????????????????????????????????????? | | ?????# #????????????????????????????????????????? | | ?????# #????????????????????????????????????????? | | ?????# #????????????????????????????????????????? | | ?????# #????????????????????????????????????????? | | ???? #???????????????????????????????????????? | | ?? ??????????????????????????????????????? | | ????????????????????????????????????? | | ## #####???????????????????????????????????? | | ?# #???????????????????????????????????????? | | ?? "???????????????????????????????????????? | | ?? "???????????????????????????????????????? | | ??? "???????????????????????????????????????? | | ???? "???????????????????????????????????????? | | ????# #???????????????????????????????????????? | | ?????? #???????????????????????????????????????? | | ?????? ???????????????????????????????????????? | | ?????? ???????????????????????????????????????? | | ?????? ???????????????????????????????????????? | | ??????###????????????????????????????????????????? | +----------------------------------------------------+ Best States ------------- Heat Dissipation 31 Energy Generation 10 Energy Capacity 325 Matter Stores 300 Matter Capacity 300 Sight Range 16 Terrain Scan Density 10 ECM Strength 1 Additional Mass Support 6 Armor Coverage 150 Resistance: KI 20 Evasion (%) 62 Targeting Accuracy 5 Recoil Reduction 2 Item Schematics ----------------- None Robot Schematics ------------------ None Fabricated ------------ Nothing Alien Tech Used ----------------- None Achievements -------------- None Challenges ------------ None Game ------ Seed NeutronCombatPendant Manual? 0 Play Time 00:24:22 Cumulative 5.1 hours Start 2024.04.02 @ 21:19:06 End 2024.04.02 @ 21:43:57 Sessions 1 Manual Loads 0 Difficulty Rogue Special Mode None Game No. 12 Rogue 12 Adventurer 0 Explorer 0 Win Type - Total 0 Types 0/0/0/0/0/0/0/0/0 Lore% 3 Gallery% 10 Achievement% 9 Wizard Run 0 Options --------- Layout 1 ASCII 0 Keyboard 0 Movement Mouse Keybinds 0 Fullscreen 1 Font 24/Smallcaps Map View 50x35 Zoom Use 0% Tactical HUD 0 Map Filters NONE Filters NONE Steam 1 RUN: d985bf88-f49d-4dfe-aaea-63882252a9a0